[Event "Early-Titled-Tuesday-Blitz-January-16-2024"]
[Site "Chess.com"]
[Date "2024.01.16"]
[Round "3"]
[White "oneshot007"]
[Black "GiorgianBarbosa"]
[Result "0-1"]
[WhiteElo "2385"]
[BlackElo "2606"]
[TimeControl "180+1"]
[EndTime "8:29:24 PST"]
[Termination "GiorgianBarbosa won by resignation"]

1. Nf3 {[%clk 0:03:00.9]} 1... Nf6 {[%clk 0:02:58.4]} 2. g3 {[%clk 0:03:01.1]}
2... e6 {[%clk 0:02:57.2]} 3. Bg2 {[%clk 0:03:01.3]} 3... d5 {[%clk 0:02:58.1]}
4. O-O {[%clk 0:03:01.3]} 4... Be7 {[%clk 0:02:59]} 5. d3 {[%clk 0:03:01.7]}
5... O-O {[%clk 0:02:59.9]} 6. Bf4 {[%clk 0:03:01.8]} 6... c5 {[%clk 0:02:59.3]}
7. Na3 {[%clk 0:03:01.2]} 7... Nc6 {[%clk 0:02:59.4]} 8. e4 {[%clk 0:02:59.1]}
8... dxe4 {[%clk 0:02:57.6]} 9. dxe4 {[%clk 0:02:59]} 9... Nxe4 {[%clk 0:02:54]}
10. Ne5 {[%clk 0:02:53.9]} 10... Nxe5 {[%clk 0:02:44.5]} 11. Bxe5 {[%clk
0:02:51.4]} 11... Nf6 {[%clk 0:02:37.4]} 12. Nc4 {[%clk 0:02:36.7]} 12... Nd7
{[%clk 0:02:26.2]} 13. Bd6 {[%clk 0:02:14.2]} 13... Nb6 {[%clk 0:02:14.8]} 14.
Bxe7 {[%clk 0:02:05.9]} 14... Qxe7 {[%clk 0:02:15.7]} 15. Na5 {[%clk 0:02:05.9]}
15... Qc7 {[%clk 0:01:55.3]} 16. c4 {[%clk 0:01:52]} 16... Rb8 {[%clk
0:01:43.5]} 17. Qf3 {[%clk 0:01:42.8]} 17... Na4 {[%clk 0:01:22]} 18. Qf4 {[%clk
0:00:59.7]} 18... Qxf4 {[%clk 0:01:17.7]} 19. gxf4 {[%clk 0:01:00.6]} 19... Nxb2
{[%clk 0:01:17.6]} 20. Rab1 {[%clk 0:01:00.6]} 20... Nd3 {[%clk 0:01:16.6]} 21.
Nc6 {[%clk 0:00:52.5]} 21... Ra8 {[%clk 0:01:11]} 22. Ne7+ {[%clk 0:00:51.8]}
22... Kh8 {[%clk 0:01:11.5]} 23. f5 {[%clk 0:00:29.8]} 23... exf5 {[%clk
0:01:05.9]} 24. Rfd1 {[%clk 0:00:22.2]} 24... Nf4 {[%clk 0:00:58.9]} 25. Nxc8
{[%clk 0:00:21.2]} 25... Nxg2 {[%clk 0:00:55.8]} 26. Kxg2 {[%clk 0:00:19.4]}
26... Raxc8 {[%clk 0:00:52.9]} 27. Rxb7 {[%clk 0:00:19.7]} 27... g6 {[%clk
0:00:44.5]} 28. Rxa7 {[%clk 0:00:19.1]} 28... Ra8 {[%clk 0:00:43.4]} 29. Rdd7
{[%clk 0:00:16]} 29... Rxa7 {[%clk 0:00:42.6]} 30. Rxa7 {[%clk 0:00:16.9]} 30...
Kg7 {[%clk 0:00:42.2]} 31. Rc7 {[%clk 0:00:16.9]} 31... Ra8 {[%clk 0:00:41.2]}
32. Rxc5 {[%clk 0:00:17]} 32... Rxa2 {[%clk 0:00:41.5]} 33. Rd5 {[%clk
0:00:16.2]} 33... Rc2 {[%clk 0:00:41.8]} 34. Rd4 {[%clk 0:00:16.6]} 34... Kf6
{[%clk 0:00:39.8]} 35. h4 {[%clk 0:00:16.7]} 35... Ke5 {[%clk 0:00:37.3]} 36.
Rd7 {[%clk 0:00:16.9]} 36... Ke6 {[%clk 0:00:37.6]} 37. Rd4 {[%clk 0:00:16.8]}
37... Ke5 {[%clk 0:00:36.9]} 38. Rd7 {[%clk 0:00:16.8]} 38... Rxc4 {[%clk
0:00:37.5]} 39. Rxf7 {[%clk 0:00:16.8]} 39... Rxh4 {[%clk 0:00:37]} 40. Kg3
{[%clk 0:00:17.3]} 40... Rg4+ {[%clk 0:00:35.1]} 41. Kf3 {[%clk 0:00:17.8]}
41... Rf4+ {[%clk 0:00:34.2]} 42. Kg3 {[%clk 0:00:18.1]} 42... Rg4+ {[%clk
0:00:33.7]} 43. Kf3 {[%clk 0:00:17.7]} 43... h5 {[%clk 0:00:34]} 44. Rh7 {[%clk
0:00:18]} 44... Kf6 {[%clk 0:00:33.3]} 45. Ke3 {[%clk 0:00:17.4]} 45... Kg5
{[%clk 0:00:29.3]} 46. f3 {[%clk 0:00:17.5]} 46... Ra4 {[%clk 0:00:28.8]} 47.
Kf2 {[%clk 0:00:17.6]} 47... Kf4 {[%clk 0:00:27.7]} 48. Rg7 {[%clk 0:00:17.3]}
48... Ra2+ {[%clk 0:00:27]} 49. Kg1 {[%clk 0:00:17.4]} 49... g5 {[%clk
0:00:27.5]} 50. Rg8 {[%clk 0:00:16.8]} 50... g4 {[%clk 0:00:27.3]} 51. fxg4
{[%clk 0:00:17.2]} 51... hxg4 {[%clk 0:00:25.8]} 0-1

[Event "Early-Titled-Tuesday-Blitz-January-16-2024"]
[Site "Chess.com"]
[Date "2024.01.16"]
[Round "3"]
[White "C_K_G"]
[Black "Statham_01"]
[Result "0-1"]
[WhiteElo "2044"]
[BlackElo "2547"]
[TimeControl "180+1"]
[EndTime "8:29:24 PST"]
[Termination "Statham_01 won on time"]

1. e4 {[%clk 0:03:00.9]} 1... e5 {[%clk 0:02:58.7]} 2. Nf3 {[%clk 0:03:01.1]}
2... Nc6 {[%clk 0:02:59.4]} 3. Bc4 {[%clk 0:02:59.6]} 3... Bc5 {[%clk
0:02:58.7]} 4. c3 {[%clk 0:02:57.4]} 4... Nf6 {[%clk 0:02:55.5]} 5. d4 {[%clk
0:02:57.9]} 5... exd4 {[%clk 0:02:55.2]} 6. cxd4 {[%clk 0:02:58]} 6... Bb4+
{[%clk 0:02:55.2]} 7. Nc3 {[%clk 0:02:55.4]} 7... Nxe4 {[%clk 0:02:54.4]} 8. O-O
{[%clk 0:02:54.5]} 8... Bxc3 {[%clk 0:02:55.1]} 9. d5 {[%clk 0:02:53.3]} 9...
Bf6 {[%clk 0:02:55.8]} 10. Re1 {[%clk 0:02:48.1]} 10... Ne7 {[%clk 0:02:55.8]}
11. Rxe4 {[%clk 0:02:47.3]} 11... d6 {[%clk 0:02:56.3]} 12. Bg5 {[%clk
0:02:29.4]} 12... Bxg5 {[%clk 0:02:56.5]} 13. Nxg5 {[%clk 0:02:29]} 13... O-O
{[%clk 0:02:41.5]} 14. Nxh7 {[%clk 0:02:18.3]} 14... Bf5 {[%clk 0:01:41.8]} 15.
Rxe7 {[%clk 0:01:56.2]} 15... Qxe7 {[%clk 0:01:35.5]} 16. Nxf8 {[%clk
0:01:56.7]} 16... Rxf8 {[%clk 0:01:35.1]} 17. Rc1 {[%clk 0:01:24.3]} 17... c5
{[%clk 0:00:52.3]} 18. dxc6 {[%clk 0:01:18.6]} 18... bxc6 {[%clk 0:00:53.2]} 19.
Bf1 {[%clk 0:01:08.3]} 19... Be4 {[%clk 0:00:47]} 20. Qd2 {[%clk 0:00:55.4]}
20... Bd5 {[%clk 0:00:41.8]} 21. b4 {[%clk 0:00:51.9]} 21... Re8 {[%clk
0:00:40.4]} 22. b5 {[%clk 0:00:48.7]} 22... Qd7 {[%clk 0:00:25.9]} 23. a4 {[%clk
0:00:35.5]} 23... Re5 {[%clk 0:00:23.4]} 24. h3 {[%clk 0:00:16.9]} 24... Rh5
{[%clk 0:00:19.5]} 25. Be2 {[%clk 0:00:12.5]} 25... Rh6 {[%clk 0:00:19.1]} 26.
Bg4 {[%clk 0:00:11.5]} 26... Qb7 {[%clk 0:00:11.6]} 27. bxc6 {[%clk 0:00:07.8]}
27... Bxc6 {[%clk 0:00:12.5]} 28. f3 {[%clk 0:00:03.7]} 28... Rg6 {[%clk
0:00:11.5]} 29. Re1 {[%clk 0:00:03.5]} 29... Qb6+ {[%clk 0:00:11.1]} 30. Qe3
{[%clk 0:00:03]} 30... Qxe3+ {[%clk 0:00:11.2]} 31. Rxe3 {[%clk 0:00:03.9]}
31... Bxa4 {[%clk 0:00:12]} 32. Re7 {[%clk 0:00:03.7]} 32... a6 {[%clk
0:00:09.6]} 33. Ra7 {[%clk 0:00:02.3]} 33... Rg5 {[%clk 0:00:03.2]} 34. Rxa6
{[%clk 0:00:01.2]} 34... Bb5 {[%clk 0:00:03.4]} 35. Rxd6 {[%clk 0:00:01.1]}
35... Kh7 {[%clk 0:00:04.2]} 0-1

[Event "Early-Titled-Tuesday-Blitz-January-16-2024"]
[Site "Chess.com"]
[Date "2024.01.16"]
[Round "3"]
[White "hakanazeri2"]
[Black "UmarovSabir"]
[Result "1-0"]
[WhiteElo "2533"]
[BlackElo "2300"]
[TimeControl "180+1"]
[EndTime "8:29:26 PST"]
[Termination "hakanazeri2 won on time"]

1. e4 {[%clk 0:02:57.9]} 1... c6 {[%clk 0:02:58.5]} 2. d4 {[%clk 0:02:49.7]}
2... d5 {[%clk 0:02:59.4]} 3. Nc3 {[%clk 0:02:50.4]} 3... g6 {[%clk 0:02:58.8]}
4. h3 {[%clk 0:02:49]} 4... Bg7 {[%clk 0:02:58.7]} 5. Nf3 {[%clk 0:02:49.3]}
5... dxe4 {[%clk 0:02:39.8]} 6. Nxe4 {[%clk 0:02:49.2]} 6... Nd7 {[%clk
0:02:39]} 7. c3 {[%clk 0:02:45.8]} 7... Ngf6 {[%clk 0:02:38.6]} 8. Nxf6+ {[%clk
0:02:41.9]} 8... Nxf6 {[%clk 0:02:38.4]} 9. Bd3 {[%clk 0:02:42.6]} 9... O-O
{[%clk 0:02:38.4]} 10. O-O {[%clk 0:02:42.3]} 10... b6 {[%clk 0:01:56.9]} 11.
Re1 {[%clk 0:02:28.9]} 11... Bb7 {[%clk 0:01:56.7]} 12. Qe2 {[%clk 0:02:26.8]}
12... Re8 {[%clk 0:01:53.7]} 13. Bc4 {[%clk 0:02:18.1]} 13... e6 {[%clk
0:01:31.4]} 14. Bf4 {[%clk 0:02:12.2]} 14... Rc8 {[%clk 0:01:29.1]} 15. Rad1
{[%clk 0:02:11.4]} 15... Nd5 {[%clk 0:01:26.1]} 16. Be5 {[%clk 0:02:07.9]} 16...
f6 {[%clk 0:01:25.1]} 17. Bg3 {[%clk 0:02:05.3]} 17... Qd7 {[%clk 0:01:24.3]}
18. Bb3 {[%clk 0:02:00.8]} 18... Kh8 {[%clk 0:01:22.3]} 19. c4 {[%clk
0:02:00.7]} 19... Nc7 {[%clk 0:01:19.4]} 20. Bxc7 {[%clk 0:01:57.9]} 20... Rxc7
{[%clk 0:01:13.7]} 21. c5 {[%clk 0:01:57.2]} 21... Qd8 {[%clk 0:00:59.9]} 22.
cxb6 {[%clk 0:01:48.9]} 22... axb6 {[%clk 0:00:59.6]} 23. Bxe6 {[%clk
0:01:40.5]} 23... Rce7 {[%clk 0:00:56.4]} 24. Qc4 {[%clk 0:01:12.3]} 24... b5
{[%clk 0:00:25.1]} 25. Qb3 {[%clk 0:01:10.1]} 25... Qd6 {[%clk 0:00:25]} 26. Bf7
{[%clk 0:00:52.4]} 26... Rxe1+ {[%clk 0:00:24.5]} 27. Rxe1 {[%clk 0:00:48.7]}
27... Rxe1+ {[%clk 0:00:24]} 28. Nxe1 {[%clk 0:00:49.6]} 28... Qxd4 {[%clk
0:00:24.5]} 29. Qe6 {[%clk 0:00:46.3]} 29... Qe5 {[%clk 0:00:15.3]} 30. Qxe5
{[%clk 0:00:36.8]} 30... fxe5 {[%clk 0:00:16.2]} 31. Nd3 {[%clk 0:00:37]} 31...
e4 {[%clk 0:00:14.9]} 32. Nc5 {[%clk 0:00:35.9]} 32... Bc8 {[%clk 0:00:13.9]}
33. b3 {[%clk 0:00:29.5]} 33... Bd4 {[%clk 0:00:12.3]} 34. Nxe4 {[%clk
0:00:26.6]} 34... Kg7 {[%clk 0:00:10.5]} 35. Be8 {[%clk 0:00:26.5]} 35... c5
{[%clk 0:00:07.3]} 36. Bxb5 {[%clk 0:00:22.3]} 36... Bf5 {[%clk 0:00:06.4]} 37.
Nd6 {[%clk 0:00:18.9]} 37... Bb1 {[%clk 0:00:05.9]} 38. a4 {[%clk 0:00:18.9]}
38... Kf6 {[%clk 0:00:05.9]} 39. Bc4 {[%clk 0:00:19]} 39... Ke5 {[%clk
0:00:04.4]} 40. Nf7+ {[%clk 0:00:18.5]} 40... Kf4 {[%clk 0:00:01.7]} 41. g3+
{[%clk 0:00:16.2]} 1-0

[Event "Early-Titled-Tuesday-Blitz-January-16-2024"]
[Site "Chess.com"]
[Date "2024.01.16"]
[Round "3"]
[White "sergoy"]
[Black "Akewjon"]
[Result "1/2-1/2"]
[WhiteElo "3011"]
[BlackElo "2756"]
[TimeControl "180+1"]
[EndTime "8:29:27 PST"]
[Termination "Game drawn by repetition"]

1. d4 {[%clk 0:03:00.9]} 1... Nf6 {[%clk 0:02:56.6]} 2. c4 {[%clk 0:03:01.2]}
2... e6 {[%clk 0:02:56.2]} 3. Nf3 {[%clk 0:03:01.9]} 3... d5 {[%clk 0:02:55.9]}
4. Nc3 {[%clk 0:03:02.1]} 4... Bb4 {[%clk 0:02:55.8]} 5. Qa4+ {[%clk 0:03:02.1]}
5... Nc6 {[%clk 0:02:55.8]} 6. a3 {[%clk 0:03:01.9]} 6... Bxc3+ {[%clk
0:02:54.3]} 7. bxc3 {[%clk 0:03:02.8]} 7... Ne4 {[%clk 0:02:54.9]} 8. e3 {[%clk
0:03:03.2]} 8... Nxc3 {[%clk 0:02:53.2]} 9. Qc2 {[%clk 0:03:03.5]} 9... Ne4
{[%clk 0:02:53.5]} 10. Bd3 {[%clk 0:03:04.2]} 10... Nd6 {[%clk 0:02:53.5]} 11.
c5 {[%clk 0:03:03.7]} 11... Nf5 {[%clk 0:02:52.7]} 12. O-O {[%clk 0:02:59.9]}
12... O-O {[%clk 0:02:48.7]} 13. Rb1 {[%clk 0:03:00.1]} 13... h6 {[%clk
0:02:32]} 14. a4 {[%clk 0:03:00.2]} 14... a5 {[%clk 0:02:26.9]} 15. Ba3 {[%clk
0:02:59.6]} 15... Nfe7 {[%clk 0:02:21.6]} 16. Rfd1 {[%clk 0:02:47.8]} 16... Ra7
{[%clk 0:02:21.2]} 17. e4 {[%clk 0:02:39.1]} 17... dxe4 {[%clk 0:02:19.7]} 18.
Bxe4 {[%clk 0:02:39.4]} 18... Nd5 {[%clk 0:02:19.7]} 19. Ne5 {[%clk 0:02:32.5]}
19... Bd7 {[%clk 0:02:13.1]} 20. Nxd7 {[%clk 0:01:51.5]} 20... Qxd7 {[%clk
0:02:12.9]} 21. Qb3 {[%clk 0:01:37.2]} 21... Rd8 {[%clk 0:02:11.8]} 22. Bb2
{[%clk 0:01:36.8]} 22... Ncb4 {[%clk 0:02:05.6]} 23. g3 {[%clk 0:01:30.6]} 23...
b5 {[%clk 0:01:59.6]} 24. axb5 {[%clk 0:01:15.4]} 24... Qxb5 {[%clk 0:01:58.7]}
25. Qf3 {[%clk 0:01:14.1]} 25... Rb8 {[%clk 0:01:50.2]} 26. Bc1 {[%clk 0:01:10]}
26... Rab7 {[%clk 0:01:45.9]} 27. g4 {[%clk 0:00:53.1]} 27... Qc4 {[%clk
0:01:37.9]} 28. g5 {[%clk 0:00:53.3]} 28... hxg5 {[%clk 0:01:38.1]} 29. Bxg5
{[%clk 0:00:53.1]} 29... f5 {[%clk 0:01:27.8]} 30. Rbc1 {[%clk 0:00:43.7]} 30...
fxe4 {[%clk 0:01:20.1]} 31. Qg4 {[%clk 0:00:43.9]} 31... Nc3 {[%clk 0:00:41.1]}
32. Bd2 {[%clk 0:00:44]} 32... Ne2+ {[%clk 0:00:38.2]} 33. Kh1 {[%clk
0:00:40.5]} 33... Nxc1 {[%clk 0:00:37.9]} 34. Rg1 {[%clk 0:00:37.2]} 34... c6
{[%clk 0:00:37.7]} 35. Bh6 {[%clk 0:00:37.4]} 35... Qe2 {[%clk 0:00:36.4]} 36.
Qxe6+ {[%clk 0:00:36.5]} 36... Kf8 {[%clk 0:00:17.2]} 37. Qf6+ {[%clk
0:00:27.6]} 37... Ke8 {[%clk 0:00:14.7]} 38. Qe6+ {[%clk 0:00:23.6]} 38... Re7
{[%clk 0:00:14]} 39. Qg6+ {[%clk 0:00:21.5]} 39... Kd7 {[%clk 0:00:14.6]} 40.
Qd6+ {[%clk 0:00:21.7]} 40... Ke8 {[%clk 0:00:13.5]} 41. Qxb8+ {[%clk 0:00:21]}
41... Kd7 {[%clk 0:00:10.4]} 42. Qd6+ {[%clk 0:00:21.4]} 42... Ke8 {[%clk
0:00:11]} 43. Qb8+ {[%clk 0:00:19.3]} 43... Kd7 {[%clk 0:00:11.1]} 44. Qd6+
{[%clk 0:00:11.7]} 44... Ke8 {[%clk 0:00:11.4]} 45. Qb8+ {[%clk 0:00:07.4]}
1/2-1/2

[Event "Early-Titled-Tuesday-Blitz-January-16-2024"]
[Site "Chess.com"]
[Date "2024.01.16"]
[Round "3"]
[White "the_blue_pill"]
[Black "Vlad_Lukiianchuk"]
[Result "1-0"]
[WhiteElo "2331"]
[BlackElo "2634"]
[TimeControl "180+1"]
[EndTime "8:29:27 PST"]
[Termination "the_blue_pill won by checkmate"]

1. b3 {[%clk 0:03:00.9]} 1... Nf6 {[%clk 0:02:56.4]} 2. Bb2 {[%clk 0:03:01.8]}
2... Nc6 {[%clk 0:02:55.3]} 3. c4 {[%clk 0:02:55.2]} 3... e5 {[%clk 0:02:52.3]}
4. e3 {[%clk 0:02:53.9]} 4... d5 {[%clk 0:02:49.5]} 5. cxd5 {[%clk 0:02:54.8]}
5... Nxd5 {[%clk 0:02:49.4]} 6. a3 {[%clk 0:02:55.4]} 6... Be7 {[%clk
0:02:44.6]} 7. Qc2 {[%clk 0:02:55.4]} 7... O-O {[%clk 0:02:39.1]} 8. Nf3 {[%clk
0:02:54.7]} 8... Bf6 {[%clk 0:02:36.9]} 9. d3 {[%clk 0:02:54.8]} 9... Be6 {[%clk
0:02:20.9]} 10. Nbd2 {[%clk 0:02:54.5]} 10... g6 {[%clk 0:02:17.8]} 11. h4
{[%clk 0:02:51.8]} 11... h6 {[%clk 0:01:55.3]} 12. Ne4 {[%clk 0:02:28.8]} 12...
Bg7 {[%clk 0:01:55]} 13. Nc5 {[%clk 0:02:15.5]} 13... Bc8 {[%clk 0:01:54.9]} 14.
b4 {[%clk 0:02:15.6]} 14... b6 {[%clk 0:01:50.8]} 15. Ne4 {[%clk 0:02:11.9]}
15... Qe8 {[%clk 0:01:30]} 16. Rc1 {[%clk 0:02:00.6]} 16... Bb7 {[%clk
0:01:23.9]} 17. d4 {[%clk 0:01:44.3]} 17... exd4 {[%clk 0:01:21.3]} 18. Bb5
{[%clk 0:01:44]} 18... Ncxb4 {[%clk 0:01:14.9]} 19. Qc4 {[%clk 0:01:11.5]} 19...
Qxe4 {[%clk 0:00:55.6]} 20. axb4 {[%clk 0:01:10.6]} 20... c6 {[%clk 0:00:48.7]}
21. Bxc6 {[%clk 0:01:01]} 21... Bxc6 {[%clk 0:00:45.4]} 22. Qxc6 {[%clk
0:00:56.2]} 22... dxe3 {[%clk 0:00:45.1]} 23. Bxg7 {[%clk 0:00:54.9]} 23... Kxg7
{[%clk 0:00:14.3]} 24. O-O {[%clk 0:00:52.9]} 24... exf2+ {[%clk 0:00:14.6]} 25.
Kxf2 {[%clk 0:00:44.6]} 25... Qe3+ {[%clk 0:00:14.1]} 26. Kg3 {[%clk 0:00:44.5]}
26... Nxb4 {[%clk 0:00:13.3]} 27. Qc4 {[%clk 0:00:37.3]} 27... a5 {[%clk
0:00:03.9]} 28. Rfe1 {[%clk 0:00:32.6]} 28... Qc5 {[%clk 0:00:04.5]} 29. Qf4
{[%clk 0:00:24.8]} 29... Qf5 {[%clk 0:00:04.4]} 30. Qd4+ {[%clk 0:00:25]} 30...
Kh7 {[%clk 0:00:05]} 31. Re5 {[%clk 0:00:18.7]} 31... Qf6 {[%clk 0:00:05.5]} 32.
Qe4 {[%clk 0:00:14.5]} 32... Rad8 {[%clk 0:00:05.7]} 33. h5 {[%clk 0:00:12.7]}
33... Nd3 {[%clk 0:00:05.7]} 34. Rc6 {[%clk 0:00:11]} 34... Qg7 {[%clk
0:00:03.6]} 35. Re7 {[%clk 0:00:07]} 35... Nc5 {[%clk 0:00:03.1]} 36. hxg6+
{[%clk 0:00:05.7]} 36... Kh8 {[%clk 0:00:03.7]} 37. Qh4 {[%clk 0:00:04.8]} 37...
Ne6 {[%clk 0:00:01.4]} 38. Rcxe6 {[%clk 0:00:03.9]} 38... Rd5 {[%clk 0:00:01.8]}
39. Rxf7 {[%clk 0:00:03.8]} 39... Rg5+ {[%clk 0:00:02.4]} 40. Nxg5 {[%clk
0:00:03.3]} 40... Rxf7 {[%clk 0:00:02.9]} 41. Nxf7+ {[%clk 0:00:03.3]} 41... Kg8
{[%clk 0:00:03.8]} 42. Nxh6+ {[%clk 0:00:03.5]} 42... Kf8 {[%clk 0:00:04.2]} 43.
Qd8# {[%clk 0:00:02.8]} 1-0

[Event "Early-Titled-Tuesday-Blitz-January-16-2024"]
[Site "Chess.com"]
[Date "2024.01.16"]
[Round "3"]
[White "Phelathegreat"]
[Black "hmatyi07"]
[Result "1-0"]
[WhiteElo "2418"]
[BlackElo "2182"]
[TimeControl "180+1"]
[EndTime "8:29:28 PST"]
[Termination "Phelathegreat won by resignation"]

1. d4 {[%clk 0:02:57.9]} 1... Nf6 {[%clk 0:02:59.2]} 2. c4 {[%clk 0:02:57.8]}
2... e6 {[%clk 0:02:58]} 3. Nc3 {[%clk 0:02:58]} 3... d5 {[%clk 0:02:57.4]} 4.
cxd5 {[%clk 0:02:56.2]} 4... exd5 {[%clk 0:02:58.3]} 5. Bg5 {[%clk 0:02:56.2]}
5... c6 {[%clk 0:02:57.9]} 6. e3 {[%clk 0:02:52.9]} 6... Be7 {[%clk 0:02:58.2]}
7. Bd3 {[%clk 0:02:52.5]} 7... O-O {[%clk 0:02:56.5]} 8. Nge2 {[%clk 0:02:52.4]}
8... Nbd7 {[%clk 0:02:56]} 9. O-O {[%clk 0:02:52.2]} 9... Re8 {[%clk 0:02:56.4]}
10. Qc2 {[%clk 0:02:39.3]} 10... h6 {[%clk 0:02:54.9]} 11. Bh4 {[%clk
0:02:38.6]} 11... Nh5 {[%clk 0:02:53.5]} 12. Bxe7 {[%clk 0:02:32.6]} 12... Qxe7
{[%clk 0:02:53.6]} 13. Rab1 {[%clk 0:02:31.4]} 13... a5 {[%clk 0:02:50.3]} 14.
a3 {[%clk 0:02:31.4]} 14... Nf8 {[%clk 0:02:27.1]} 15. b4 {[%clk 0:02:30.4]}
15... axb4 {[%clk 0:02:25.6]} 16. axb4 {[%clk 0:02:31.3]} 16... Bd7 {[%clk
0:02:21.1]} 17. b5 {[%clk 0:02:30.6]} 17... Nf6 {[%clk 0:02:15.6]} 18. bxc6
{[%clk 0:02:29.6]} 18... bxc6 {[%clk 0:02:16.5]} 19. Na4 {[%clk 0:02:24.3]}
19... Ne4 {[%clk 0:02:04]} 20. Bxe4 {[%clk 0:02:22.7]} 20... dxe4 {[%clk
0:01:54.3]} 21. Nc5 {[%clk 0:02:17.4]} 21... Ne6 {[%clk 0:01:41.8]} 22. Nxd7
{[%clk 0:02:13.5]} 22... Qxd7 {[%clk 0:01:41.5]} 23. Qxe4 {[%clk 0:02:13.5]}
23... Ng5 {[%clk 0:01:18.7]} 24. Qc2 {[%clk 0:02:10.3]} 24... Qg4 {[%clk
0:01:15.3]} 25. Nf4 {[%clk 0:02:00.6]} 25... Rac8 {[%clk 0:00:54.1]} 26. Rb7
{[%clk 0:01:51.3]} 26... Nf3+ {[%clk 0:00:51.4]} 27. Kh1 {[%clk 0:01:49.5]}
27... Nxd4 {[%clk 0:00:52]} 28. Qa2 {[%clk 0:01:29.7]} 28... Ne6 {[%clk
0:00:49.7]} 29. Nxe6 {[%clk 0:01:29.6]} 29... Qxe6 {[%clk 0:00:49.9]} 30. Qxe6
{[%clk 0:01:28.8]} 30... Rxe6 {[%clk 0:00:50.2]} 31. Rc1 {[%clk 0:01:28.9]}
31... Rd6 {[%clk 0:00:46.8]} 32. g3 {[%clk 0:01:26.3]} 32... Kf8 {[%clk
0:00:45.9]} 33. Rc2 {[%clk 0:01:25.2]} 33... g6 {[%clk 0:00:44.4]} 34. Kg2
{[%clk 0:01:25.1]} 34... Kg7 {[%clk 0:00:44.5]} 35. Ra2 {[%clk 0:01:24.7]} 35...
Rcd8 {[%clk 0:00:42.8]} 36. Raa7 {[%clk 0:01:24.1]} 36... Rf6 {[%clk 0:00:42.3]}
37. Rd7 {[%clk 0:01:13.5]} 37... Rb8 {[%clk 0:00:38.1]} 38. Ra2 {[%clk
0:01:11.4]} 38... Rb5 {[%clk 0:00:35.6]} 39. e4 {[%clk 0:01:09.5]} 39... Re5
{[%clk 0:00:30.1]} 40. Ra4 {[%clk 0:01:06.2]} 40... Rb5 {[%clk 0:00:28.9]} 41.
Ra2 {[%clk 0:00:57.7]} 41... Re5 {[%clk 0:00:28.4]} 42. Re2 {[%clk 0:00:57.1]}
42... Rfe6 {[%clk 0:00:24.2]} 43. f3 {[%clk 0:00:45.7]} 43... Rb5 {[%clk
0:00:23.8]} 44. f4 {[%clk 0:00:43.5]} 44... Rb4 {[%clk 0:00:20.6]} 45. e5 {[%clk
0:00:43]} 45... Rc4 {[%clk 0:00:20]} 46. Ra2 {[%clk 0:00:42.1]} 46... g5 {[%clk
0:00:07.4]} 47. Raa7 {[%clk 0:00:31.1]} 47... gxf4 {[%clk 0:00:07.9]} 48. Rxf7+
{[%clk 0:00:30.6]} 48... Kg6 {[%clk 0:00:08.4]} 49. gxf4 {[%clk 0:00:30.7]}
49... Rc3 {[%clk 0:00:06.6]} 50. f5+ {[%clk 0:00:30.1]} 50... Kg5 {[%clk
0:00:06.9]} 51. fxe6 {[%clk 0:00:30.2]} 1-0

[Event "Early-Titled-Tuesday-Blitz-January-16-2024"]
[Site "Chess.com"]
[Date "2024.01.16"]
[Round "3"]
[White "Alex_Sahakyan2006"]
[Black "artooon"]
[Result "0-1"]
[WhiteElo "2714"]
[BlackElo "2968"]
[TimeControl "180+1"]
[EndTime "8:29:29 PST"]
[Termination "artooon won on time"]

1. e4 {[%clk 0:03:00.9]} 1... c5 {[%clk 0:03:00.1]} 2. Nc3 {[%clk 0:03:01.2]}
2... Nc6 {[%clk 0:03:00.6]} 3. Bb5 {[%clk 0:03:01.6]} 3... Nd4 {[%clk
0:03:00.5]} 4. Nf3 {[%clk 0:03:00.6]} 4... Nxb5 {[%clk 0:02:56.6]} 5. Nxb5
{[%clk 0:03:01.5]} 5... a6 {[%clk 0:02:56]} 6. Nc3 {[%clk 0:03:00.5]} 6... d6
{[%clk 0:02:56.6]} 7. d4 {[%clk 0:03:00.8]} 7... cxd4 {[%clk 0:02:57.5]} 8. Qxd4
{[%clk 0:03:01.5]} 8... e5 {[%clk 0:02:54.9]} 9. Qb4 {[%clk 0:03:02]} 9... Ne7
{[%clk 0:02:47.3]} 10. Bg5 {[%clk 0:02:53.6]} 10... Nc6 {[%clk 0:02:43.3]} 11.
Qb3 {[%clk 0:02:28.1]} 11... Nd4 {[%clk 0:02:26.1]} 12. Bxd8 {[%clk 0:01:58.9]}
12... Nxb3 {[%clk 0:02:25.1]} 13. axb3 {[%clk 0:01:59.8]} 13... Kxd8 {[%clk
0:02:25.1]} 14. Rd1 {[%clk 0:01:49.7]} 14... Bd7 {[%clk 0:02:01.9]} 15. Nd5
{[%clk 0:01:46]} 15... Rc8 {[%clk 0:01:52.9]} 16. c3 {[%clk 0:01:42.4]} 16...
Be6 {[%clk 0:01:45.5]} 17. O-O {[%clk 0:01:35.6]} 17... f6 {[%clk 0:01:42.8]}
18. Rd2 {[%clk 0:01:27.9]} 18... Ke8 {[%clk 0:01:42.6]} 19. b4 {[%clk
0:01:17.5]} 19... Kf7 {[%clk 0:01:42.2]} 20. Ra1 {[%clk 0:01:16.8]} 20... g5
{[%clk 0:01:23.1]} 21. Ne1 {[%clk 0:00:57.7]} 21... Rc4 {[%clk 0:01:03.3]} 22.
Nc2 {[%clk 0:00:22.6]} 22... Rxe4 {[%clk 0:00:57.1]} 23. Nce3 {[%clk 0:00:23.1]}
23... g4 {[%clk 0:00:55.2]} 24. b5 {[%clk 0:00:20.6]} 24... Bh6 {[%clk
0:00:28.6]} 25. bxa6 {[%clk 0:00:19.6]} 25... bxa6 {[%clk 0:00:28.7]} 26. Rxa6
{[%clk 0:00:19.7]} 26... f5 {[%clk 0:00:21.2]} 27. Ra7+ {[%clk 0:00:14.5]} 27...
Kg6 {[%clk 0:00:21.5]} 28. Ne7+ {[%clk 0:00:14.3]} 28... Kg5 {[%clk 0:00:18.1]}
29. Rxd6 {[%clk 0:00:11.3]} 29... f4 {[%clk 0:00:10.2]} 30. h4+ {[%clk 0:00:10]}
30... gxh3 {[%clk 0:00:10.3]} 31. Rxe6 {[%clk 0:00:10.3]} 31... fxe3 {[%clk
0:00:10.8]} 32. fxe3 {[%clk 0:00:09.9]} 32... Rg4 {[%clk 0:00:11.3]} 33. Rxe5+
{[%clk 0:00:09.2]} 33... Kf6 {[%clk 0:00:09.3]} 34. Rf5+ {[%clk 0:00:08.2]}
34... Ke6 {[%clk 0:00:09.8]} 35. Rf3 {[%clk 0:00:08]} 35... Rxg2+ {[%clk
0:00:09.4]} 36. Kh1 {[%clk 0:00:08.6]} 36... Rd8 {[%clk 0:00:10.1]} 37. Ra6+
{[%clk 0:00:07.6]} 37... Kxe7 {[%clk 0:00:10.2]} 38. Rxh3 {[%clk 0:00:06]} 38...
Rxb2 {[%clk 0:00:09.9]} 39. Ra7+ {[%clk 0:00:06.1]} 39... Ke8 {[%clk 0:00:09.3]}
40. Ra1 {[%clk 0:00:02.7]} 40... Rd6 {[%clk 0:00:09.7]} 0-1